fUSD/lending_fUSD_20250407
["ID","MTS","AMOUNT","RATE_DAILY","PERIOD"]
[357307452,1744004099334,-698.44,0.00049863,120]
[357307453,1744004099365,-500.0,0.00049863,120]
[357307454,1744004099395,-500.0,0.00049863,120]
[357307455,1744004099427,-500.0,0.00049863,120]
[357307456,1744004099458,-500.0,0.00049863,120]
[357307457,1744004099488,-500.0,0.00049863,120]
[357307458,1744004099519,-512.08328029,0.00049863,120]
[357307459,1744004099555,-500.0,0.00049863,120]
[357307460,1744004099587,-500.0,0.00049863,120]
[357307461,1744004099621,-500.0,0.00049863,120]
[357307462,1744004099651,-559.77149719,0.00049863,120]
[357307463,1744004099683,-500.0,0.00049863,120]
[357307464,1744004099714,-500.0,0.00049863,120]
[357307465,1744004099742,-500.0,0.00049863,120]
[357307466,1744004099770,-500.0,0.00049863,120]
[357307467,1744004099801,-534.68748421,0.00049863,120]
[357307468,1744004099829,-500.0,0.00049863,120]
[357307469,1744004099858,-500.0,0.00049863,120]
[357307470,1744004099888,-500.0,0.00049863,120]
[357307471,1744004099917,-500.0,0.00049863,120]
[357307472,1744004099945,-500.0,0.00049863,120]
[357307473,1744004099974,-605.16,0.00049863,120]
[357307474,1744004100004,-500.0,0.00049863,120]
[357307475,1744004100034,-552.45,0.00049863,120]
[357307476,1744004100064,-500.0,0.00049863,120]
[357307477,1744004100094,-500.0,0.00049863,120]
[357307478,1744004100124,-500.0,0.00049863,120]
[357307479,1744004100155,-500.0,0.00049863,120]
[357307480,1744004100185,-500.0,0.00049863,120]
[357307481,1744004100216,-982.92,0.00049863,120]
[357307482,1744004100247,-500.0,0.00049863,120]
[357307483,1744004100278,-500.0,0.00049863,120]
[357307484,1744004100312,-500.0,0.00049863,120]
[357307485,1744004100345,-251.57838796,0.00049863,120]
[357307486,1744004100375,-500.0,0.00049863,120]
[357307487,1744004100404,-500.0,0.00049863,120]
[357307488,1744004100435,-925.52,0.00049863,120]
[357307489,1744004100467,-500.0,0.00049863,120]
[357307490,1744004100500,-500.0,0.00049863,120]
[357307491,1744004100530,-500.0,0.00049863,120]
[357307492,1744004100562,-500.0,0.00049863,120]
[357307493,1744004100782,-668.44,0.00049863,120]
[357307494,1744004100812,-500.0,0.00049863,120]
[357307495,1744004100841,-500.0,0.00049863,120]
[357307496,1744004100871,-165.0,0.00049863,120]
[357307497,1744004100899,-634.14,0.00049863,120]
[357307498,1744004100929,-500.0,0.00049863,120]
[357307499,1744004100958,-500.0,0.00049863,120]
[357307500,1744004100987,-500.0,0.00049863,120]
[357307501,1744004101016,-622.19,0.00049863,120]
[357307502,1744004101047,-500.0,0.00049863,120]
[357307503,1744004101077,-500.0,0.00049863,120]
[357307504,1744004101108,-672.79,0.00049863,120]
[357307505,1744004101142,-500.0,0.00049863,120]
[357307506,1744004101175,-1035.98271049,0.00049863,120]
[357307507,1744004101209,-500.0,0.00049863,120]
[357307508,1744004101244,-500.0,0.00049863,120]
[357307509,1744004101279,-581.8267367,0.00049863,120]
[357307510,1744004101320,-533.86,0.00049863,120]
[357307511,1744004101358,-162.60408162,0.00049863,120]
[357307512,1744004101392,-500.0,0.00049863,120]
[357307513,1744004101426,-500.0,0.00049863,120]
[357307514,1744004101460,-500.0,0.00049863,120]
[357307515,1744004101494,-500.0,0.00049863,120]
[357307516,1744004101527,-500.0,0.00049863,120]
[357307517,1744004101559,-500.0,0.00049863,120]
[357307518,1744004101593,-500.0,0.00049863,120]
[357307519,1744004101627,-500.0,0.00049863,120]
[357307520,1744004101659,-1225.53,0.00049863,120]
[357307521,1744004101698,-500.0,0.00049863,120]
[357307522,1744004101739,-500.0,0.00049863,120]
[357307523,1744004101773,-500.0,0.00049863,120]
[357307524,1744004101807,-500.0,0.00049863,120]
[357307525,1744004101842,-500.0,0.00049863,120]
[357307526,1744004101875,-500.0,0.00049863,120]
[357307527,1744004101908,-500.0,0.00049863,120]
[357307528,1744004101940,-500.0,0.00049863,120]
[357307529,1744004101973,-500.0,0.00049863,120]
[357307530,1744004102004,-500.0,0.00049863,120]
[357307531,1744004102037,-500.0,0.00049863,120]
[357307532,1744004102069,-500.0,0.00049863,120]
[357307533,1744004102103,-500.0,0.00049863,120]
[357307534,1744004102135,-500.0,0.00049863,120]
[357307535,1744004102168,-500.0,0.00049863,120]
[357307536,1744004102199,-500.0,0.00049863,120]
[357307537,1744004102231,-693.97,0.00049863,120]
[357307538,1744004102263,-527.40549102,0.00049863,120]
[357307539,1744004102294,-500.0,0.00049863,120]
[357307540,1744004102333,-611.43825635,0.00049863,120]
[357307541,1744004102369,-500.0,0.00049863,120]
[357307542,1744004102404,-500.0,0.00049863,120]
[357307543,1744004102438,-515.66055092,0.00049863,120]
[357307544,1744004102472,-500.0,0.00049863,120]
[357307545,1744004102507,-500.0,0.00049863,120]
[357307546,1744004102540,-500.0,0.00049863,120]
[357307547,1744004102577,-305.52847855,0.00049863,120]
[357307548,1744004102612,-500.0,0.00049863,120]
[357307549,1744004102646,-500.0,0.00049863,120]
[357307550,1744004102682,-500.0,0.00049863,120]
[357307551,1744004102716,-500.0,0.00049863,120]
[357307552,1744004102752,-500.0,0.00049863,120]
[357307553,1744004102786,-704.28,0.00049863,120]
[357307554,1744004102822,-500.0,0.00049863,120]
[357307555,1744004102855,-500.0,0.00049863,120]
[357307556,1744004102890,-1261.58,0.00049863,120]
[357307557,1744004102923,-500.0,0.00049863,120]
[357307558,1744004102957,-559.03,0.00049863,120]
[357307559,1744004102989,-500.0,0.00049863,120]
[357307560,1744004103029,-500.0,0.00049863,120]
[357307561,1744004103072,-500.0,0.00049863,120]
[357307562,1744004103109,-500.0,0.00049863,120]
[357307563,1744004103145,-500.0,0.00049863,120]
[357307564,1744004103180,-500.0,0.00049863,120]
[357307565,1744004103216,-772.01,0.00049863,120]
[357307566,1744004103251,-500.0,0.00049863,120]
[357307567,1744004103287,-760.28,0.00049863,120]
[357307568,1744004103327,-500.0,0.00049863,120]
[357307569,1744004103362,-500.0,0.00049863,120]
[357307570,1744004103396,-500.0,0.00049863,120]
[357307571,1744004103429,-500.0,0.00049863,120]
[357307572,1744004103463,-500.0,0.00049863,30]
[357307573,1744004103497,-500.0,0.00049863,120]
[357307574,1744004103536,-500.0,0.00049863,120]
[357307575,1744004103572,-526.55407098,0.00049863,120]
[357307576,1744004103608,-500.0,0.00049863,120]
[357307577,1744004103645,-500.0,0.00049863,120]
[357307578,1744004103681,-500.0,0.00049863,120]
[357307579,1744004103715,-500.0,0.00049863,120]
[357307580,1744004103750,-500.0,0.00049863,120]
[357307581,1744004103783,-500.0,0.00049863,120]
[357307582,1744004103819,-500.0,0.00049863,120]
[357307583,1744004103857,-518.37461759,0.00049863,120]
[357307584,1744004103890,-500.0,0.00049863,120]
[357307585,1744004103925,-500.0,0.00049863,120]
[357307586,1744004103959,-500.0,0.00049863,120]
[357307587,1744004104239,-500.0,0.00049863,120]
[357307588,1744004104273,-500.0,0.00049863,120]
[357307589,1744004104310,-900.59,0.00049863,120]
[357307590,1744004104345,-500.0,0.00049863,120]
[357307591,1744004104380,-500.0,0.00049863,120]
[357307592,1744004104412,-500.0,0.00049863,120]
[357307593,1744004104444,-835.94,0.00049863,120]
[357307594,1744004104476,-500.0,0.00049863,120]
[357307595,1744004104508,-500.0,0.00049863,120]
[357307596,1744004104540,-500.0,0.00049863,120]
[357307597,1744004104575,-500.0,0.00049863,120]
[357307598,1744004104607,-500.0,0.00049863,120]
[357307599,1744004104643,-500.0,0.00049863,120]
[357307600,1744004104676,-500.0,0.00049863,120]
[357307601,1744004104707,-1395.43,0.00049863,120]
[357307602,1744004104738,-500.0,0.00049863,120]
[357307603,1744004104769,-351.68044288,0.00049863,120]
[357307604,1744004104803,-596.65,0.00049863,120]
[357307605,1744004104834,-537.0328878,0.00049863,120]
[357307606,1744004104867,-800.51,0.00049863,120]
[357307607,1744004104900,-646.46,0.00049863,120]
[357307608,1744004104932,-500.0,0.00049863,120]
[357307609,1744004104965,-500.0,0.00049863,120]
[357307610,1744004104999,-500.0,0.00049863,120]
[357307611,1744004105032,-500.0,0.00049863,120]
[357307612,1744004105070,-797.82,0.00049863,120]
[357307613,1744004105104,-500.0,0.00049863,120]
[357307614,1744004105137,-2707.98,0.00049863,120]
[357307615,1744004105169,-595.28631575,0.00049863,120]
[357307616,1744004105203,-669.44,0.00049863,120]
[357307617,1744004105235,-698.98,0.00049863,120]
[357307618,1744004105267,-500.0,0.00049863,120]
[357307619,1744004105303,-500.0,0.00049863,120]
[357307620,1744004105336,-500.0,0.00049863,120]
[357307621,1744004105369,-500.0,0.00049863,120]
[357307622,1744004105403,-500.0,0.00049863,120]
[357307623,1744004105435,-500.0,0.00049863,120]
[357307624,1744004105472,-500.0,0.00049863,120]
[357307625,1744004105503,-500.0,0.00049863,120]
[357307626,1744004105535,-500.0,0.00049863,120]
[357307627,1744004105569,-500.0,0.00049863,120]
[357307628,1744004105601,-500.0,0.00049863,120]
[357307629,1744004105634,-500.0,0.00049863,120]
[357307630,1744004105667,-524.26,0.00049863,120]
[357307631,1744004105701,-2353.85,0.00049863,120]
[357307632,1744004105734,-500.0,0.00049863,120]
[357307633,1744004105766,-500.0,0.00049863,120]
[357307634,1744004105802,-987.22,0.00049863,120]
[357307635,1744004105833,-500.0,0.00049863,120]
[357307636,1744004105864,-500.0,0.00049863,120]
[357307637,1744004105897,-500.0,0.00049863,120]
[357307638,1744004105930,-500.0,0.00049863,120]
[357307639,1744004105964,-500.0,0.00049863,120]
[357307640,1744004105999,-500.0,0.00049863,120]
[357307641,1744004106032,-500.0,0.00049863,120]
[357307642,1744004106068,-1172.21,0.00049863,120]
[357307643,1744004106103,-500.0,0.00049863,120]
[357307644,1744004106137,-500.0,0.00049863,120]
[357307645,1744004106170,-500.0,0.00049863,120]
[357307646,1744004106202,-500.0,0.00049863,120]
[357307647,1744004106234,-500.0,0.00049863,120]
[357307648,1744004106266,-500.0,0.00049863,120]
[357307649,1744004106298,-500.0,0.00049863,120]
[357307650,1744004106330,-500.0,0.00049863,120]
[357307651,1744004106362,-851.74,0.00049863,120]
[357307652,1744004106392,-500.0,0.00049863,120]
[357307653,1744004106426,-500.0,0.00049863,120]
[357307654,1744004106458,-1634.77,0.00049863,120]
[357307655,1744004106488,-500.0,0.00049863,120]
[357307656,1744004106520,-500.0,0.00049863,120]
[357307657,1744004106553,-551.53,0.00049863,120]
[357307658,1744004106584,-500.0,0.00049863,120]
[357307659,1744004106618,-500.0,0.00049863,120]
[357307660,1744004106651,-612.34,0.00049863,120]
[357307661,1744004106685,-500.0,0.00049863,120]
[357307662,1744004106718,-500.0,0.00049863,120]
[357307663,1744004106749,-678.92,0.00049863,120]
[357307664,1744004106785,-651.82,0.00049863,120]
[357307665,1744004106818,-567.32,0.00049863,120]
[357307666,1744004106849,-500.0,0.00049863,120]
[357307667,1744004106881,-500.0,0.00049863,120]
[357307668,1744004106914,-761.56,0.00049863,120]
[357307669,1744004106945,-526.71,0.00049863,30]
[357307670,1744004106977,-500.0,0.00049863,120]
[357307671,1744004107009,-500.0,0.00049863,120]
[357307672,1744004107040,-515.69,0.00049863,120]
[357307673,1744004107073,-500.0,0.00049863,120]
[357307674,1744004107104,-500.0,0.00049863,120]
[357307675,1744004107135,-500.0,0.00049863,120]
[357307676,1744004107169,-500.0,0.00049863,120]
[357307677,1744004107200,-500.0,0.00049863,120]
[357307678,1744004107231,-500.0,0.00049863,120]
[357307679,1744004107263,-607.42,0.00049863,120]
[357307680,1744004107294,-500.0,0.00049863,120]
[357307681,1744004107329,-808.28,0.00049863,120]
[357307682,1744004107543,-1141.72,0.00049863,120]
[357307683,1744004107579,-500.0,0.00049863,120]
[357307684,1744004107611,-500.0,0.00049863,120]
[357307685,1744004107646,-500.0,0.00049863,120]
[357307686,1744004107678,-500.0,0.00049863,120]
[357307687,1744004107709,-500.0,0.00049863,120]
[357307688,1744004107741,-500.0,0.00049863,120]
[357307689,1744004107772,-180.67484976,0.00049863,120]
[357307690,1744004107806,-500.0,0.00049863,120]
[357307691,1744004107838,-500.0,0.00049863,120]
[357307692,1744004107869,-680.97,0.00049863,120]
[357307693,1744004107901,-504.69513802,0.00049863,120]
[357307694,1744004107933,-500.0,0.00049863,120]
[357307695,1744004107965,-500.0,0.00049863,120]
[357307696,1744004107999,-836.39,0.00049863,120]
[357307697,1744004108034,-601.74888538,0.00049863,120]
[357307698,1744004108071,-500.0,0.00049863,120]
[357307699,1744004108106,-500.0,0.00049863,120]
[357307700,1744004108141,-500.0,0.00049863,120]
[357307701,1744004108176,-500.0,0.00049863,120]
[357307702,1744004108210,-903.73,0.00049863,120]
[357307703,1744004108243,-500.0,0.00049863,120]
[357307704,1744004108276,-500.0,0.00049863,120]
[357307705,1744004108309,-500.0,0.00049863,120]
[357307706,1744004108342,-500.0,0.00049863,120]
[357307707,1744004108374,-176.940987,0.00049863,120]
[357307708,1744004108406,-500.0,0.00049863,120]
[357307709,1744004108438,-483.12470186,0.00049863,120]
[357307710,1744004108470,-644.8666148,0.00049863,120]
[357307711,1744004108503,-500.0,0.00049863,120]
[357307712,1744004108536,-500.0,0.00049863,120]
[357307713,1744004108571,-160.08621925,0.00049863,120]
[357307714,1744004108603,-500.0,0.00049863,120]
[357307715,1744004108639,-1024.23,0.00049863,120]
[357307716,1744004108672,-578.64633719,0.00049863,120]
[357307717,1744004108706,-500.0,0.00049863,120]
[357307718,1744004108740,-668.47,0.00049863,120]
[357307719,1744004108773,-500.0,0.00049863,120]
[357307720,1744004108808,-1188.09,0.00049863,120]
[357307721,1744004108841,-284.16593631,0.00049863,120]
[357307722,1744004108874,-500.0,0.00049863,120]
[357307723,1744004108906,-500.0,0.00049863,120]
[357307724,1744004108938,-500.0,0.00049863,120]
[357307725,1744004108972,-500.0,0.00049863,120]
[357307726,1744004109005,-614.03034478,0.00049863,120]
[357307727,1744004109038,-500.0,0.00049863,120]
[357307728,1744004109075,-522.03484385,0.00049863,120]
[357307729,1744004109109,-500.0,0.00049863,120]
[357307730,1744004109143,-500.0,0.00049863,120]
[357307731,1744004109178,-500.0,0.00049863,120]
[357307732,1744004109211,-188.782644,0.00049863,120]
[357307733,1744004109244,-500.0,0.00049863,120]
[357307734,1744004109276,-500.0,0.00049863,120]
[357307735,1744004109310,-500.0,0.00049863,120]
[357307736,1744004109344,-500.0,0.00049863,120]
[357307737,1744004109378,-500.0,0.00049863,120]
[357307738,1744004109415,-641.3387083,0.00049863,120]
[357307739,1744004109450,-869.5,0.00049863,120]
[357307740,1744004109484,-500.0,0.00049863,120]
[357307741,1744004109516,-500.0,0.00049863,120]
[357307742,1744004109553,-195.73961819,0.00049863,120]
[357307743,1744004109587,-500.0,0.00049863,120]
[357307744,1744004109623,-500.0,0.00049863,120]
[357307745,1744004109659,-500.0,0.00049863,120]
[357307746,1744004109693,-512.81965951,0.00049863,120]
[357307747,1744004109726,-617.6032467,0.00049863,120]
[357307748,1744004109759,-500.0,0.00049863,120]
[357307749,1744004109790,-500.0,0.00049863,120]
[357307750,1744004109824,-500.0,0.00049863,120]
[357307751,1744004109857,-500.0,0.00049863,120]
[357307752,1744004109890,-500.0,0.00049863,120]
[357307753,1744004109922,-500.0,0.00049863,120]
[357307754,1744004109953,-500.0,0.00049863,120]
[357307755,1744004109986,-979.42,0.00049863,120]
[357307756,1744004110017,-500.0,0.00049863,120]
[357307757,1744004110049,-500.0,0.00049863,120]
[357307758,1744004110083,-500.0,0.00049863,120]
[357307759,1744004110115,-500.0,0.00049863,120]
[357307760,1744004110146,-500.0,0.00049863,120]
[357307761,1744004110178,-319.18,0.00049863,120]
[357307762,1744004110209,-500.0,0.00049863,120]
[357307763,1744004110240,-891.76,0.00049863,120]
[357307764,1744004110272,-500.0,0.00049863,120]
[357307765,1744004110305,-543.86,0.00049863,120]
[357307766,1744004110337,-500.0,0.00049863,120]
[357307767,1744004110369,-500.0,0.00049863,120]
[357307768,1744004110401,-500.0,0.00049863,120]
[357307769,1744004110433,-500.0,0.00049863,120]
[357307770,1744004110466,-1390.95,0.00049863,120]
[357307771,1744004110500,-183.27507319,0.00049863,120]
[357307772,1744004110532,-1131.81,0.00049863,120]
[357307773,1744004110566,-500.0,0.00049863,120]
[357307774,1744004110599,-500.0,0.00049863,120]
[357307775,1744004110636,-642.12,0.00049863,120]
[357307776,1744004110873,-500.0,0.00049863,120]
[357307777,1744004110906,-801.0,0.00049863,120]
[357307778,1744004110941,-500.0,0.00049863,120]
[357307779,1744004110974,-500.0,0.00049863,120]
[357307780,1744004111007,-500.0,0.00049863,120]
[357307781,1744004111041,-698.07,0.00049863,120]
[357307782,1744004111077,-500.0,0.00049863,120]
[357307783,1744004111111,-603.59,0.00049863,120]
[357307784,1744004111144,-1604.32,0.00049863,120]
[357307785,1744004111178,-601.47,0.00049863,120]
[357307786,1744004111211,-500.0,0.00049863,120]
[357307787,1744004111243,-500.0,0.00049863,120]
[357307788,1744004111276,-854.05,0.00049863,120]
[357307789,1744004111311,-500.0,0.00049863,120]
[357307790,1744004111345,-500.0,0.00049863,120]
[357307791,1744004111376,-500.0,0.00049863,120]
[357307792,1744004111408,-565.78,0.00049863,120]
[357307793,1744004111439,-500.0,0.00049863,120]
[357307794,1744004111469,-500.0,0.00049863,120]
[357307795,1744004111500,-500.0,0.00049863,120]
[357307796,1744004111531,-695.39,0.00049863,120]
[357307797,1744004111562,-500.0,0.00049863,120]
[357307798,1744004111594,-500.0,0.00049863,120]
[357307799,1744004111628,-497.4267599,0.00049863,120]
[357307800,1744004111660,-516.92,0.00049863,120]
[357307801,1744004111693,-500.0,0.00049863,120]
[357307802,1744004111727,-451.66101514,0.00049863,120]
[357307803,1744004111759,-551.51,0.00049863,120]
[357307804,1744004111791,-500.0,0.00049863,120]
[357307805,1744004111824,-500.0,0.00049863,120]
[357307806,1744004111857,-580.70428884,0.00049863,120]
[357307807,1744004111889,-248.86929271,0.00049863,120]
[357307808,1744004111920,-2327.34,0.00049863,120]
[357307809,1744004111951,-500.0,0.00049863,120]
[357307810,1744004111984,-2127.39,0.00049863,120]
[357307811,1744004112017,-500.0,0.00049863,120]
[357307812,1744004112050,-500.0,0.00049863,120]
[357307813,1744004112086,-3568.12,0.00049863,120]
[357307814,1744004112122,-500.0,0.00049863,120]
[357307815,1744004112155,-500.0,0.00049863,120]
[357307816,1744004112191,-500.0,0.00049863,120]
[357307817,1744004112223,-500.0,0.00049863,120]
[357307818,1744004112257,-500.0,0.00049863,120]
[357307819,1744004112294,-500.0,0.00049863,120]
[357307820,1744004112331,-500.0,0.00049863,120]
[357307821,1744004112365,-500.0,0.00049863,120]
[357307822,1744004112397,-1265.5,0.00049863,120]
[357307823,1744004112430,-500.0,0.00049863,120]
[357307824,1744004112463,-500.0,0.00049863,120]
[357307825,1744004112495,-500.0,0.00049863,120]
[357307826,1744004112529,-500.0,0.00049863,120]
[357307827,1744004112562,-671.37,0.00049863,120]
[357307828,1744004112595,-500.0,0.00049863,120]
[357307829,1744004112632,-500.0,0.00049863,120]
[357307830,1744004112666,-462.42046664,0.00049863,120]
[357307831,1744004112699,-500.0,0.00049863,120]
[357307832,1744004112731,-500.0,0.00049863,120]
[357307833,1744004112763,-500.0,0.00049863,120]
[357307834,1744004112796,-500.0,0.00049863,120]
[357307835,1744004112831,-500.0,0.00049863,120]
[357307836,1744004112863,-500.0,0.00049863,120]
[357307837,1744004112895,-500.0,0.00049863,120]
[357307838,1744004112927,-500.0,0.00049863,120]
[357307839,1744004112960,-500.0,0.00049863,120]
[357307840,1744004112992,-588.88,0.00049863,120]
[357307841,1744004113025,-536.42,0.00049863,120]
[357307842,1744004113059,-500.0,0.00049863,120]
[357307843,1744004113091,-500.0,0.00049863,120]
[357307844,1744004113123,-500.0,0.00049863,120]
[357307845,1744004113154,-500.0,0.00049863,120]
[357307846,1744004113187,-500.0,0.00049863,120]
[357307847,1744004113219,-500.0,0.00049863,120]
[357307848,1744004113251,-257.38634822,0.00049863,120]
[357307849,1744004113283,-500.0,0.00049863,120]
[357307850,1744004113315,-509.64713611,0.00049863,120]
[357307851,1744004113348,-500.0,0.00049863,120]
[357307852,1744004113378,-300.10673275,0.00049863,120]
[357307853,1744004113410,-500.0,0.00049863,120]
[357307854,1744004113443,-500.0,0.00049863,120]
[357307855,1744004113474,-500.0,0.00049863,120]
[357307856,1744004113508,-500.0,0.00049863,120]
[357307857,1744004113541,-552.66562883,0.00049863,120]
[357307858,1744004113578,-500.0,0.00049863,120]
[357307859,1744004113617,-500.0,0.00049863,120]
[357307860,1744004113651,-500.0,0.00049863,120]
[357307861,1744004113685,-500.0,0.00049863,120]
[357307862,1744004113721,-500.0,0.00049863,120]
[357307863,1744004113754,-920.41,0.00049863,120]
[357307864,1744004113786,-500.0,0.00049863,30]
[357307865,1744004113819,-500.0,0.00049863,120]
[357307866,1744004113851,-500.0,0.00049863,120]
[357307867,1744004113884,-722.15,0.00049863,120]
[357307868,1744004113917,-533.55090444,0.00049863,120]
[357307869,1744004113948,-500.0,0.00049863,120]
[357307870,1744004114177,-500.0,0.00049863,120]
[357307871,1744004114214,-616.004791,0.00049863,120]
[357307872,1744004114246,-500.0,0.00049863,120]
[357307873,1744004114278,-500.0,0.00049863,120]
[357307874,1744004114312,-585.51524445,0.00049863,120]
[357307875,1744004114345,-500.0,0.00049863,120]
[357307876,1744004114378,-500.0,0.00049863,120]
[357307877,1744004114410,-500.0,0.00049863,120]
[357307878,1744004114443,-1878.13,0.00049863,120]
[357307879,1744004114476,-500.0,0.00049863,120]
[357307880,1744004114509,-540.92,0.00049863,120]
[357307881,1744004114540,-1212.9,0.00049863,120]
[357307882,1744004114574,-530.78,0.00049863,120]
[357307883,1744004114605,-500.0,0.00049863,120]
[357307884,1744004114636,-500.0,0.00049863,120]
[357307885,1744004114668,-500.0,0.00049863,120]
[357307886,1744004114700,-500.0,0.00049863,120]
[357307887,1744004114732,-500.0,0.00049863,120]
[357307888,1744004114763,-562.95637806,0.00049863,120]
[357307889,1744004114795,-600.93238221,0.00049863,120]
[357307890,1744004114829,-272.89853786,0.00049863,120]
[357307891,1744004114862,-806.17,0.00049863,120]
[357307892,1744004114894,-500.0,0.00049863,120]
[357307893,1744004114926,-14376.76,0.00049863,120]
[357307894,1744004114957,-500.0,0.00049863,120]
[357307895,1744004114989,-500.0,0.00049863,120]
[357307896,1744004115022,-500.0,0.00049863,120]
[357307897,1744004115057,-546.47,0.00049863,120]
[357307898,1744004115089,-917.72,0.00049863,120]
[357307899,1744004115121,-500.0,0.00049863,120]
[357307900,1744004115151,-558.29470208,0.00049863,120]
[357307901,1744004115182,-500.0,0.00049863,120]
[357307902,1744004115213,-1483.35,0.00049863,120]
[357307903,1744004115245,-500.0,0.00049863,120]
[357307904,1744004115277,-500.0,0.00049863,120]
[357307905,1744004115310,-902.71,0.00049863,120]
[357307906,1744004115342,-500.0,0.00049863,120]
[357307907,1744004115374,-564.17,0.00049863,120]
[357307908,1744004115405,-500.0,0.00049863,120]
[357307909,1744004115436,-500.0,0.00049863,120]
[357307910,1744004115468,-1381.13,0.00049863,120]
[357307911,1744004115499,-500.0,0.00049863,120]
[357307912,1744004115531,-727.29,0.00049863,120]
[357307913,1744004115562,-500.0,0.00049863,120]
[357307914,1744004115596,-500.0,0.00049863,120]
[357307915,1744004115629,-179.57851572,0.00049863,120]
[357307916,1744004115661,-500.0,0.00049863,120]
[357307917,1744004115692,-500.0,0.00049863,120]
[357307918,1744004115726,-360.62765247,0.00049863,120]
[357307919,1744004115758,-521.52,0.00049863,120]
[357307920,1744004115789,-4838.43,0.00049863,120]
[357307921,1744004115820,-565.99289964,0.00049863,120]
[357307922,1744004115851,-941.24,0.00049863,100]
[357307923,1744004115882,-500.0,0.00049863,120]
[357307924,1744004115912,-500.0,0.00049863,120]
[357307925,1744004115943,-500.0,0.00049863,120]
[357307926,1744004115975,-500.0,0.00049863,120]
[357307927,1744004116005,-500.0,0.00049863,120]
[357307928,1744004116037,-500.0,0.00049863,120]
[357307929,1744004116069,-627.99947473,0.00049863,120]
[357307930,1744004116101,-4405.71,0.00049863,120]
[357307931,1744004116132,-500.0,0.00049863,120]
[357307932,1744004116163,-524.32510137,0.00049863,120]
[357307933,1744004116195,-500.0,0.00049863,120]
[357307934,1744004116225,-539.23252862,0.00049863,120]
[357307935,1744004116257,-500.0,0.00049863,120]
[357307936,1744004116298,-500.0,0.00049863,120]
[357307937,1744004116329,-531.57916665,0.00049863,120]
[357307938,1744004116359,-522.95872036,0.00049863,120]
[357307939,1744004116391,-500.0,0.00049863,120]
[357307940,1744004116422,-500.0,0.00049863,120]
[357307941,1744004116453,-500.0,0.00049863,120]
[357307942,1744004116486,-500.0,0.00049863,120]
[357307943,1744004116518,-626.18754853,0.00049863,120]
[357307944,1744004116548,-500.0,0.00049863,120]
[357307945,1744004116580,-500.0,0.00049863,120]
[357307946,1744004116611,-1085.1,0.00049863,120]
[357307947,1744004116645,-500.0,0.00049863,120]
[357307948,1744004116678,-1190.97,0.00049863,120]
[357307949,1744004116709,-500.0,0.00049863,120]
[357307950,1744004116740,-611.58,0.00049863,120]
[357307951,1744004116772,-1814.7,0.00049863,120]